fUST/lending_fUST_20250101
["ID","MTS","AMOUNT","RATE_DAILY","PERIOD"]
[347299971,1735667450782,-573.9,0.0002,3]
[347299972,1735667450791,-1206.983899,0.0002,2]
[347299973,1735667450800,-1206.983899,0.0002,2]
[347299974,1735667450811,-2249.87,0.0002,3]
[347299975,1735667450821,-500.0,0.0002,3]
[347299976,1735667450831,-1770.04,0.0002,3]
[347299977,1735667450840,-820.83,0.0002,3]
[347299978,1735667450851,-1206.983899,0.0002,2]
[347299979,1735667450863,-1206.983899,0.0002,2]
[347299980,1735667450872,-4579.19,0.0002,3]
[347299981,1735667450882,-720.35,0.0002,3]
[347299982,1735667450891,-1152.48,0.0002,3]
[347299983,1735667450900,-533.66,0.0002,3]
[347299984,1735667450910,-500.0,0.0002,3]
[347299985,1735667450919,-500.0,0.0002,3]
[347299986,1735667450929,-500.0,0.0002,3]
[347299987,1735667450938,-602.59,0.0002,3]
[347299988,1735667450948,-998.59,0.0002,3]
[347299989,1735667450957,-151.0,0.0002,2]
[347299990,1735667450967,-151.0,0.0002,2]
[347299991,1735667450976,-500.0,0.0002,3]
[347299992,1735667450985,-500.0,0.0002,3]
[347299993,1735667450995,-325.9334559,0.0002,3]
[347299994,1735667451004,-2398.43,0.0002,3]
[347299995,1735667451013,-500.0,0.0002,3]
[347299996,1735667451024,-500.0,0.0002,3]
[347299997,1735667451033,-500.0,0.0002,3]
[347299998,1735667451042,-1309.91,0.0002,3]
[347299999,1735667451054,-630.13301445,0.0002,3]
[347300000,1735667451063,-500.0,0.0002,3]
[347300001,1735667451073,-3595.1,0.0002,3]
[347300002,1735667451082,-500.0,0.0002,3]
[347300003,1735667451091,-1839.48699282,0.0002,3]
[347300004,1735667451111,-255.6496719,0.0002,3]
[347300005,1735667451123,-8067.69333528,0.0002,3]
[347300006,1735667451133,-500.0,0.0002,3]
[347300007,1735667451148,-500.0,0.0002,3]
[347300008,1735667451158,-1590.43,0.0002,3]
[347300009,1735667451167,-500.0,0.0002,3]
[347300010,1735667451177,-602.53,0.0002,3]
[347300011,1735667451187,-1870.48,0.0002,3]
[347300012,1735667451196,-1000.0,0.00020021,2]
[347300013,1735667451205,-465.02990572,0.0002011,2]
[347300014,1735667451214,-599.92003848,0.00020155,2]
[347300015,1735667451223,-151.0,0.00020172,2]
[347300016,1735667451233,-4734.15602876,0.00020179,2]
[347300017,1735667451242,-151.0,0.00020273,2]
[347300018,1735667451252,-160.048068,0.00020273,2]
[347300019,1735667451262,-151.0,0.00020273,2]
[347300020,1735667451274,-151.0,0.00020273,2]
[347300021,1735667451283,-151.0,0.00020273,2]
[347300022,1735667451293,-151.0,0.00020273,2]
[347300023,1735667451383,-151.0,0.00020273,2]
[347300024,1735667451393,-651.902247,0.00020273,2]
[347300025,1735667451403,-651.902247,0.00020273,2]
[347300026,1735667451414,-651.902247,0.00020273,2]
[347300027,1735667451428,-651.902247,0.00020273,2]
[347300028,1735667451438,-151.0,0.00020273,2]
[347300029,1735667451458,-551.321667,0.00020273,2]
[347300030,1735667451467,-382.899481,0.00020273,2]
[347300031,1735667451476,-551.321667,0.00020273,2]
[347300032,1735667451485,-382.899481,0.00020273,2]
[347300033,1735667451494,-386.366478,0.00020273,2]
[347300034,1735667451503,-386.366478,0.00020273,2]
[347300035,1735667451513,-151.0,0.00020273,2]
[347300036,1735667451522,-420.885378,0.00020273,2]
[347300037,1735667451531,-151.0,0.00020273,2]
[347300038,1735667451541,-151.0,0.00020273,2]
[347300039,1735667451550,-500.0,0.00020273,3]
[347300040,1735667451559,-500.0,0.00020273,3]
[347300041,1735667451568,-151.0,0.00020273,2]
[347300042,1735667451577,-187.830355,0.00020273,2]
[347300043,1735667451586,-500.0,0.00020273,3]
[347300044,1735667451595,-500.0,0.00020273,3]
[347300045,1735667451605,-535.16398584,0.00020273,3]
[347300046,1735667451615,-500.0,0.00020273,3]
[347300047,1735667451624,-543.56,0.00020273,3]
[347300048,1735667451634,-500.0,0.00020273,3]
[347300049,1735667451643,-1014.439301,0.00020273,2]
[347300050,1735667451652,-1014.439301,0.00020273,2]
[347300051,1735667451670,-1014.439301,0.00020273,2]
[347300052,1735667451681,-1014.439301,0.00020273,2]
[347300053,1735667451691,-151.0,0.00020273,2]
[347300054,1735667451701,-151.0,0.00020273,2]
[347300055,1735667451710,-151.0,0.00020273,2]
[347300056,1735667451721,-151.0,0.00020273,2]
[347300057,1735667451730,-1525.91,0.00020273,3]
[347300058,1735667451740,-500.0,0.00020273,3]
[347300059,1735667451750,-500.0,0.00020273,3]
[347300060,1735667451759,-500.0,0.00020273,3]
[347300061,1735667451769,-500.0,0.00020273,3]
[347300062,1735667451779,-500.0,0.00020273,3]
[347300063,1735667451788,-500.0,0.00020273,3]
[347300064,1735667451798,-929.03,0.00020273,3]
[347300065,1735667451807,-151.0,0.00020273,2]
[347300066,1735667451816,-151.0,0.00020273,2]
[347300067,1735667451826,-921.68,0.00020273,3]
[347300068,1735667451836,-500.0,0.00020273,3]
[347300069,1735667451845,-663.77,0.00020273,3]
[347300070,1735667451855,-500.0,0.00020273,3]
[347300071,1735667451865,-329.461715,0.00020273,2]
[347300072,1735667451875,-329.461715,0.00020273,2]
[347300073,1735667451884,-500.0,0.00020273,3]
[347300074,1735667451893,-329.461715,0.00020273,2]
[347300075,1735667451903,-329.461715,0.00020273,2]
[347300076,1735667451913,-500.0,0.00020273,3]
[347300077,1735667451922,-441.214446,0.00020273,2]
[347300078,1735667451932,-441.214446,0.00020273,2]
[347300079,1735667451941,-500.0,0.00020273,3]
[347300080,1735667451952,-151.0,0.00020273,2]
[347300081,1735667451962,-500.0,0.00020273,3]
[347300082,1735667451971,-441.214446,0.00020273,2]
[347300083,1735667451983,-441.214446,0.00020273,2]
[347300084,1735667451992,-369.06409352,0.00020273,3]
[347300085,1735667452001,-965.99,0.00020273,3]
[347300086,1735667452011,-315.24493546,0.00020273,3]
[347300087,1735667452020,-512.17,0.00020273,3]
[347300088,1735667452030,-188.0,0.00020273,2]
[347300089,1735667452039,-538.58,0.00020273,2]
[347300090,1735667452049,-500.0,0.00020273,3]
[347300091,1735667452058,-500.0,0.00020273,3]
[347300092,1735667452067,-1114.06,0.00020273,3]
[347300093,1735667452077,-500.0,0.00020273,3]
[347300094,1735667452086,-500.0,0.00020273,3]
[347300095,1735667452096,-500.0,0.00020273,3]
[347300096,1735667452105,-500.0,0.00020273,3]
[347300097,1735667452117,-500.0,0.00020273,3]
[347300098,1735667452127,-500.0,0.00020273,3]
[347300099,1735667452137,-500.0,0.00020273,3]
[347300100,1735667452146,-267.28891495,0.00020273,3]
[347300101,1735667452155,-500.0,0.00020273,3]
[347300102,1735667452165,-478.55396164,0.00020273,3]
[347300103,1735667452175,-906.63,0.00020273,3]
[347300104,1735667452184,-660.6,0.00020273,3]
[347300105,1735667452194,-500.0,0.00020273,3]
[347300106,1735667452203,-574.88,0.00020273,3]
[347300107,1735667452212,-6902.88,0.00020273,3]
[347300108,1735667452222,-651.3,0.00020273,3]
[347300109,1735667452232,-171.551662,0.00020273,2]
[347300110,1735667452241,-171.551662,0.00020273,2]
[347300111,1735667452250,-266.64130418,0.00020273,3]
[347300112,1735667452260,-500.0,0.00020273,3]
[347300113,1735667452274,-458.64782058,0.00020273,3]
[347300114,1735667452289,-29.49949272,0.00020273,3]
[347300115,1735667452298,-500.0,0.00020273,3]
[347300116,1735667452309,-500.0,0.00020273,3]
[347300117,1735667452319,-500.0,0.00020273,3]
[347300118,1735667452328,-618.13,0.00020273,3]
[347300119,1735667452338,-500.0,0.00020273,3]
[347300120,1735667452348,-500.0,0.00020273,3]
[347300121,1735667452359,-695.858059,0.00020273,2]
[347300122,1735667452368,-1118.43,0.00020273,3]
[347300123,1735667452378,-695.858059,0.00020273,2]
[347300124,1735667452387,-500.0,0.00020273,3]
[347300125,1735667452397,-500.0,0.00020273,3]
[347300126,1735667452407,-1319.91363,0.00020273,2]
[347300127,1735667452416,-500.0,0.00020273,3]
[347300128,1735667452425,-1319.91363,0.00020273,2]
[347300129,1735667452435,-500.0,0.00020273,3]
[347300130,1735667452445,-151.0,0.00020273,2]
[347300131,1735667452454,-1278.55,0.00020273,3]
[347300132,1735667452463,-551.19,0.00020273,3]
[347300133,1735667452473,-961.46,0.00020273,3]
[347300134,1735667452482,-852.97,0.00020273,3]
[347300135,1735667452491,-500.0,0.00020273,3]
[347300136,1735667452501,-660.61,0.00020273,3]
[347300137,1735667452510,-500.0,0.00020273,3]
[347300138,1735667452520,-500.0,0.00020273,3]
[347300139,1735667452529,-500.0,0.00020273,3]
[347300140,1735667452539,-500.0,0.00020273,3]
[347300141,1735667452548,-529.34,0.00020273,3]
[347300142,1735667452558,-1259.16,0.00020273,3]
[347300143,1735667452567,-619.23,0.00020273,3]
[347300144,1735667452577,-423.981439,0.00020273,2]
[347300145,1735667452586,-898.16,0.00020273,3]
[347300146,1735667452596,-423.981439,0.00020273,2]
[347300147,1735667452605,-500.0,0.00020273,3]
[347300148,1735667452616,-648.64021206,0.00020273,3]
[347300149,1735667452625,-500.0,0.00020273,3]
[347300150,1735667452635,-6822.57,0.00020273,3]
[347300151,1735667452645,-500.0,0.00020273,3]
[347300152,1735667452655,-4961.99192619,0.00020273,3]
[347300153,1735667452667,-5155.05807381,0.00020273,3]
[347300154,1735667452677,-314.847636,0.00020273,2]
[347300155,1735667452687,-1305.31,0.00020273,3]
[347300156,1735667452696,-1161.536742,0.00020273,2]
[347300157,1735667452706,-1615.97,0.00020273,3]
[347300158,1735667452715,-314.847636,0.00020273,2]
[347300159,1735667452725,-500.0,0.00020273,3]
[347300160,1735667452734,-1161.536742,0.00020273,2]
[347300161,1735667452744,-500.0,0.00020273,3]
[347300162,1735667452754,-500.0,0.00020273,3]
[347300163,1735667452763,-637.88,0.00020273,3]
[347300164,1735667452773,-1583.73,0.00020273,3]
[347300165,1735667452783,-500.0,0.00020273,3]
[347300166,1735667452792,-500.0,0.00020273,3]
[347300167,1735667452801,-500.0,0.00020273,3]
[347300168,1735667452904,-924.8,0.00020273,3]
[347300169,1735667452914,-648.51860179,0.00020273,3]
[347300170,1735667452923,-245.96079676,0.00020273,3]
[347300171,1735667452933,-411.64384183,0.00020273,3]
[347300172,1735667453230,-500.0,0.00019178,2]
[347300173,1735667453239,-500.0,0.00019178,2]
[347300174,1735667453249,-500.0,0.00019178,2]
[347300175,1735667453258,-500.0,0.00019452,3]
[347300176,1735667453271,-500.0,0.00019452,3]
[347300177,1735667453280,-500.0,0.00019726,3]
[347300178,1735667453290,-501.83,0.00019726,3]
[347300179,1735667453299,-500.0,0.0002,3]
[347300180,1735667453309,-1224.82615817,0.00020273,3]
[347300181,1735667453318,-500.0,0.00020273,3]
[347300182,1735667453327,-973.58,0.00020273,3]
[347300183,1735667453337,-500.0,0.00020273,3]
[347300184,1735667453347,-970.46,0.00020273,3]
[347300185,1735667453358,-500.0,0.00020273,3]
[347300186,1735667453367,-500.0,0.00020273,3]
[347300187,1735667453376,-949.8,0.00020273,3]
[347300188,1735667453388,-742.06,0.00020273,3]
[347300189,1735667453397,-889.29,0.00020273,3]
[347300190,1735667453406,-500.0,0.00020273,3]
[347300191,1735667453416,-1138.73,0.00020273,3]
[347300192,1735667453425,-500.0,0.00020273,3]
[347300193,1735667453435,-500.0,0.00020273,3]
[347300194,1735667453444,-500.0,0.00020273,3]
[347300195,1735667453453,-151.0,0.00020273,2]
[347300196,1735667453463,-899.84,0.00020273,3]
[347300197,1735667453473,-974.07,0.00020273,3]
[347300198,1735667453482,-1137.33,0.00020273,3]
[347300199,1735667453491,-500.0,0.00020273,3]
[347300200,1735667453500,-669.2,0.00020273,3]
[347300201,1735667453510,-500.0,0.00020273,3]
[347300202,1735667453519,-3522.84,0.00020273,3]
[347300203,1735667453528,-681.668854,0.00020273,2]
[347300204,1735667453538,-681.668854,0.00020273,2]
[347300205,1735667453547,-1091.71,0.00020273,3]
[347300206,1735667453556,-626.35,0.00020273,3]
[347300207,1735667453565,-203.93964182,0.00020273,3]
[347300208,1735667453574,-887.93,0.00020273,3]
[347300209,1735667453583,-535.902229,0.00020273,2]
[347300210,1735667453592,-1044.83,0.00020273,3]
[347300211,1735667453602,-655.13,0.00020273,3]
[347300212,1735667453612,-535.902229,0.00020273,2]
[347300213,1735667453621,-151.0,0.00020273,2]
[347300214,1735667453631,-3487.55,0.00020273,3]
[347300215,1735667453640,-500.0,0.00020273,3]
[347300216,1735667453650,-785.81,0.00020273,3]
[347300217,1735667453659,-500.0,0.00020273,3]
[347300218,1735667453668,-643.19,0.00020273,3]
[347300219,1735667453678,-500.0,0.00020273,3]
[347300220,1735667453687,-500.0,0.00020273,3]
[347300221,1735667453698,-1011.04,0.00020273,3]
[347300222,1735667453707,-500.0,0.00020273,3]
[347300223,1735667453716,-500.0,0.00020273,3]
[347300224,1735667453726,-6259.3,0.00020273,3]
[347300225,1735667453735,-500.0,0.00020273,3]
[347300226,1735667453745,-526.01,0.00020273,3]
[347300227,1735667453756,-500.0,0.00020273,3]
[347300228,1735667453765,-500.0,0.00020273,3]
[347300229,1735667453775,-500.0,0.00020273,3]
[347300230,1735667453785,-1775.9,0.00020273,3]
[347300231,1735667453795,-1175.66,0.00020273,3]
[347300232,1735667453804,-49369.0,0.00020273,3]
[347300233,1735667453813,-931.62,0.00020273,3]
[347300234,1735667453823,-500.0,0.00020273,3]
[347300235,1735667453832,-2195.01,0.00020273,3]
[347300236,1735667453842,-780.75,0.00020273,3]
[347300237,1735667453852,-500.0,0.00020273,3]
[347300238,1735667453863,-500.0,0.00020273,3]
[347300239,1735667453874,-1238.49,0.00020273,3]
[347300240,1735667453884,-573.9,0.00020273,3]
[347300241,1735667453894,-1206.983899,0.00020273,2]
[347300242,1735667453909,-2249.87,0.00020273,3]
[347300243,1735667453928,-500.0,0.00020273,3]
[347300244,1735667453940,-1770.04,0.00020273,3]
[347300245,1735667453951,-1206.983899,0.00020273,2]
[347300246,1735667453960,-4579.19,0.00020273,3]
[347300247,1735667453970,-720.35,0.00020273,3]
[347300248,1735667453979,-1152.48,0.00020273,3]
[347300249,1735667453989,-820.83,0.00020273,3]
[347300250,1735667453999,-533.66,0.00020273,3]
[347300251,1735667454008,-500.0,0.00020273,3]
[347300252,1735667454017,-500.0,0.00020273,3]
[347300253,1735667454026,-500.0,0.00020273,3]
[347300254,1735667454036,-499.0,0.00020273,2]
[347300255,1735667454045,-602.59,0.00020273,3]
[347300256,1735667454055,-998.59,0.00020273,3]
[347300257,1735667454064,-500.0,0.00020273,3]
[347300258,1735667454073,-151.0,0.00020273,2]
[347300259,1735667454082,-500.0,0.00020273,3]
[347300260,1735667454091,-2398.43,0.00020273,3]
[347300261,1735667454101,-500.0,0.00020273,3]
[347300262,1735667454111,-500.0,0.00020273,3]
[347300263,1735667454120,-1309.91,0.00020273,3]
[347300264,1735667454129,-500.0,0.00020273,3]
[347300265,1735667454139,-3595.1,0.00020273,3]
[347300266,1735667454148,-166.04547641,0.00020273,3]
[347300267,1735667454157,-10162.83,0.00020273,3]
[347300268,1735667454166,-500.0,0.00020273,3]
[347300269,1735667454176,-500.0,0.00020273,3]
[347300270,1735667454185,-316.35429055,0.00020273,3]
[347300271,1735667454270,-602.53,0.00020273,3]
[347300272,1735667454279,-1870.48,0.00020273,3]
[347300273,1735667454289,-618.0,0.000203,2]
[347300274,1735667454299,-599.92003848,0.00020334,2]
[347300275,1735667454308,-153.0,0.00020356,2]
[347300276,1735667454318,-150.0,0.0002039,2]
[347300277,1735667454327,-534.0,0.0002039,2]
[347300278,1735667454336,-2095.0,0.0002039,2]
[347300279,1735667454345,-2348.0,0.0002039,2]
[347300280,1735667454355,-150.0,0.0002039,2]
[347300281,1735667454365,-421.04,0.0002039,2]
[347300282,1735667454375,-151.601,0.0002039,2]
[347300283,1735667454385,-210.05770162,0.00020439,2]
[347300284,1735667454394,-400.0,0.00020447,2]
[347300285,1735667454404,-4734.15602876,0.00020468,2]
[347300286,1735667454413,-599.92003848,0.00020514,2]
[347300287,1735667454424,-198.047082,0.00020521,2]
[347300288,1735667454435,-641.62234858,0.0002053,2]
[347300289,1735667454444,-346.147994,0.00020547,2]
[347300290,1735667454453,-151.0,0.00020547,2]
[347300291,1735667454465,-151.0,0.00020547,2]
[347300292,1735667454475,-151.0,0.00020547,2]
[347300293,1735667454484,-151.0,0.00020547,2]
[347300294,1735667454493,-651.902247,0.00020547,2]
[347300295,1735667454503,-651.902247,0.00020547,2]
[347300296,1735667454513,-151.0,0.00020547,2]
[347300297,1735667454522,-551.321667,0.00020547,2]
[347300298,1735667454532,-551.321667,0.00020547,2]
[347300299,1735667454541,-382.899481,0.00020547,2]
[347300300,1735667454550,-551.321667,0.00020547,2]
[347300301,1735667454560,-551.321667,0.00020547,2]
[347300302,1735667454569,-382.899481,0.00020547,2]
[347300303,1735667454578,-386.366478,0.00020547,2]
[347300304,1735667454588,-386.366478,0.00020547,2]
[347300305,1735667454597,-420.885378,0.00020547,2]
[347300306,1735667454606,-420.885378,0.00020547,2]
[347300307,1735667454615,-151.0,0.00020547,2]
[347300308,1735667454624,-500.0,0.00020547,3]
[347300309,1735667454633,-500.0,0.00020547,3]
[347300310,1735667454643,-500.0,0.00020547,3]
[347300311,1735667454653,-543.56,0.00020547,3]
[347300312,1735667454662,-500.0,0.00020547,3]
[347300313,1735667454671,-1014.439301,0.00020547,2]
[347300314,1735667454681,-1014.439301,0.00020547,2]
[347300315,1735667454690,-151.0,0.00020547,2]
[347300316,1735667454699,-151.0,0.00020547,2]
[347300317,1735667454708,-1525.91,0.00020547,3]
[347300318,1735667454717,-500.0,0.00020547,3]
[347300319,1735667454727,-500.0,0.00020547,3]
[347300320,1735667454736,-500.0,0.00020547,3]
[347300321,1735667454745,-500.0,0.00020547,3]
[347300322,1735667454754,-500.0,0.00020547,3]
[347300323,1735667454763,-467.14124649,0.00020547,3]
[347300324,1735667454772,-929.03,0.00020547,3]
[347300325,1735667454781,-151.0,0.00020547,2]
[347300326,1735667454791,-500.0,0.00020547,3]
[347300327,1735667454800,-663.77,0.00020547,3]
[347300328,1735667454809,-500.0,0.00020547,3]
[347300329,1735667454818,-329.461715,0.00020547,2]
[347300330,1735667454827,-376.01818357,0.00020547,3]
[347300331,1735667454836,-329.461715,0.00020547,2]
[347300332,1735667454845,-500.0,0.00020547,3]
[347300333,1735667454855,-441.214446,0.00020547,2]
[347300334,1735667454874,-500.0,0.00020547,3]
[347300335,1735667454895,-151.0,0.00020547,2]
[347300336,1735667454912,-154.338824,0.00020547,2]
[347300337,1735667454929,-500.0,0.00020547,3]
[347300338,1735667454947,-441.214446,0.00020547,2]
[347300339,1735667454965,-965.99,0.00020547,3]
[347300340,1735667454980,-512.17,0.00020547,3]
[347300341,1735667454997,-228.40318252,0.00020547,2]
[347300342,1735667455011,-538.58,0.00020547,2]
[347300343,1735667455026,-500.0,0.00020547,3]
[347300344,1735667455045,-1114.06,0.00020547,3]
[347300345,1735667455062,-500.0,0.00020547,3]
[347300346,1735667455079,-500.0,0.00020547,3]
[347300347,1735667455090,-500.0,0.00020547,3]
[347300348,1735667455107,-223.92562225,0.00020547,3]
[347300349,1735667455125,-500.0,0.00020547,3]
[347300350,1735667455140,-500.0,0.00020547,3]
[347300351,1735667455154,-615.5160007,0.00020547,3]
[347300352,1735667455166,-500.0,0.00020547,3]
[347300353,1735667455180,-906.63,0.00020547,3]
[347300354,1735667455195,-660.6,0.00020547,3]
[347300355,1735667455210,-500.0,0.00020547,3]
[347300356,1735667455224,-574.88,0.00020547,3]
[347300357,1735667455238,-6902.88,0.00020547,3]
[347300358,1735667455253,-651.3,0.00020547,3]
[347300359,1735667455268,-171.551662,0.00020547,2]
[347300360,1735667455282,-171.551662,0.00020547,2]
[347300361,1735667455295,-171.551662,0.00020547,2]
[347300362,1735667455311,-171.551662,0.00020547,2]
[347300363,1735667455324,-500.0,0.00020547,3]
[347300364,1735667455337,-500.0,0.00020547,3]
[347300365,1735667455352,-500.0,0.00020547,3]
[347300366,1735667455369,-500.0,0.00020547,3]
[347300367,1735667455383,-618.13,0.00020547,3]
[347300368,1735667455397,-500.0,0.00020547,3]
[347300369,1735667455412,-500.0,0.00020547,3]
[347300370,1735667455426,-695.858059,0.00020547,2]
[347300371,1735667455441,-695.858059,0.00020547,2]
[347300372,1735667455450,-1118.43,0.00020547,3]
[347300373,1735667455460,-695.858059,0.00020547,2]
[347300374,1735667455469,-695.858059,0.00020547,2]
[347300375,1735667455479,-500.0,0.00020547,3]
[347300376,1735667455489,-500.0,0.00020547,3]
[347300377,1735667455499,-508.87326687,0.00020547,3]
[347300378,1735667455509,-1319.91363,0.00020547,2]
[347300379,1735667455519,-1319.91363,0.00020547,2]
[347300380,1735667455528,-1319.91363,0.00020547,2]
[347300381,1735667455538,-1319.91363,0.00020547,2]
[347300382,1735667455547,-500.0,0.00020547,3]
[347300383,1735667455557,-1278.55,0.00020547,3]
[347300384,1735667455566,-551.19,0.00020547,3]
[347300385,1735667455578,-961.46,0.00020547,3]
[347300386,1735667455587,-852.97,0.00020547,3]
[347300387,1735667455597,-196.9716233,0.00020547,3]
[347300388,1735667455608,-660.61,0.00020547,3]
[347300389,1735667455618,-500.0,0.00020547,3]
[347300390,1735667455627,-500.0,0.00020547,3]
[347300391,1735667455636,-500.0,0.00020547,3]
[347300392,1735667455646,-500.0,0.00020547,3]
[347300393,1735667455655,-529.34,0.00020547,3]
[347300394,1735667455664,-1259.16,0.00020547,3]
[347300395,1735667455673,-619.23,0.00020547,3]
[347300396,1735667455885,-423.981439,0.00020547,2]
[347300397,1735667455900,-423.981439,0.00020547,2]
[347300398,1735667455910,-898.16,0.00020547,3]
[347300399,1735667455920,-423.981439,0.00020547,2]
[347300400,1735667455930,-423.981439,0.00020547,2]
[347300401,1735667455939,-500.0,0.00020547,3]
[347300402,1735667455948,-502.60873035,0.00020547,3]
[347300403,1735667455958,-6822.57,0.00020547,3]
[347300404,1735667455967,-500.0,0.00020547,3]
[347300405,1735667455976,-10117.05,0.00020547,3]
[347300406,1735667455985,-314.847636,0.00020547,2]
[347300407,1735667455994,-314.847636,0.00020547,2]
[347300408,1735667456004,-1305.31,0.00020547,3]
[347300409,1735667456013,-1161.536742,0.00020547,2]
[347300410,1735667456022,-1161.536742,0.00020547,2]
[347300411,1735667456032,-1615.97,0.00020547,3]
[347300412,1735667456042,-573.99445169,0.00020547,3]
[347300413,1735667456051,-314.847636,0.00020547,2]
[347300414,1735667456060,-314.847636,0.00020547,2]
[347300415,1735667456070,-1161.536742,0.00020547,2]
[347300416,1735667456079,-1161.536742,0.00020547,2]
[347300417,1735667456089,-500.0,0.00020547,3]
[347300418,1735667456099,-500.0,0.00020547,3]
[347300419,1735667456109,-1583.73,0.00020547,3]
[347300420,1735667456119,-500.0,0.00020547,3]
[347300421,1735667456128,-274.72647043,0.00020547,3]
[347300422,1735667456139,-500.0,0.00020547,3]
[347300423,1735667456148,-924.8,0.00020547,3]
[347300424,1735667456158,-1636.47,0.00020547,3]
[347300425,1735667456167,-458.12967853,0.00020547,3]
[347300426,1735667456176,-973.58,0.00020547,3]
[347300427,1735667456186,-500.0,0.00020547,3]
[347300428,1735667456196,-970.46,0.00020547,3]
[347300429,1735667456206,-500.0,0.00020547,3]
[347300430,1735667456215,-500.0,0.00020547,3]
[347300431,1735667456225,-949.8,0.00020547,3]
[347300432,1735667456234,-742.06,0.00020547,3]
[347300433,1735667456243,-889.29,0.00020547,3]
[347300434,1735667456252,-500.0,0.00020547,3]
[347300435,1735667456261,-1138.73,0.00020547,3]
[347300436,1735667456275,-500.0,0.00020547,3]
[347300437,1735667456284,-500.0,0.00020547,3]
[347300438,1735667456293,-500.0,0.00020547,3]
[347300439,1735667456302,-151.0,0.00020547,2]
[347300440,1735667456313,-152.85006,0.00020547,2]
[347300441,1735667456322,-899.84,0.00020547,3]
[347300442,1735667456331,-974.07,0.00020547,3]
[347300443,1735667456341,-1137.33,0.00020547,3]
[347300444,1735667456350,-500.0,0.00020547,3]
[347300445,1735667456360,-500.0,0.00020547,3]
[347300446,1735667456369,-669.2,0.00020547,3]
[347300447,1735667456378,-681.668854,0.00020547,2]
[347300448,1735667456387,-681.668854,0.00020547,2]
[347300449,1735667456397,-681.668854,0.00020547,2]
[347300450,1735667456406,-681.668854,0.00020547,2]
[347300451,1735667456415,-1091.71,0.00020547,3]
[347300452,1735667456424,-3522.84,0.00020547,3]
[347300453,1735667456433,-626.35,0.00020547,3]
[347300454,1735667456443,-887.93,0.00020547,3]
[347300455,1735667456452,-1044.83,0.00020547,3]
[347300456,1735667456461,-535.902229,0.00020547,2]
[347300457,1735667456471,-535.902229,0.00020547,2]
[347300458,1735667456480,-655.13,0.00020547,3]
[347300459,1735667456489,-535.902229,0.00020547,2]
[347300460,1735667456499,-151.0,0.00020547,2]
[347300461,1735667456508,-535.902229,0.00020547,2]
[347300462,1735667456517,-3487.55,0.00020547,3]
[347300463,1735667456526,-500.0,0.00020547,3]
[347300464,1735667456535,-785.81,0.00020547,3]
[347300465,1735667456545,-500.0,0.00020547,3]
[347300466,1735667456554,-643.19,0.00020547,3]
[347300467,1735667456563,-542.94096437,0.00020547,3]
[347300468,1735667456573,-500.0,0.00020547,3]
[347300469,1735667456582,-1011.04,0.00020547,3]
[347300470,1735667456591,-500.0,0.00020547,3]